OrganisationURI,OrganisationLabel,Organisation Unit,TransactionNumber,Invoice Ref.,Beneficiary Name,Expense Type,Purpose,Payment Date,Amount
http://statistics.data.gov.uk/id/local-authority-district/23UB,Cheltenham Borough Council,Repairs and Maintenance,14079648,406460,A & E Fire and Security Ltd,R2042-HRA100,R & M of Build Fire Systems,12/06/2020,"1,020.05 "
http://statistics.data.gov.uk/id/local-authority-district/23UB,Cheltenham Borough Council,Recreation Centre Repairs & Maintenance,14080015,406740,A & E Fire and Security Ltd,R2042-REC111,R & M of Build Fire Systems,19/06/2020,848.66 
http://statistics.data.gov.uk/id/local-authority-district/23UB,Cheltenham Borough Council,Recreation Centre Repairs & Maintenance,14080031,406772,A & E Fire and Security Ltd,R2042-REC111,R & M of Build Fire Systems,19/06/2020,840.75 
http://statistics.data.gov.uk/id/local-authority-district/23UB,Cheltenham Borough Council,Recreation Centre Repairs & Maintenance,14080032,406777,A & E Fire and Security Ltd,R2042-REC111,R & M of Build Fire Systems,19/06/2020,"3,671.91 "
http://statistics.data.gov.uk/id/local-authority-district/23UB,Cheltenham Borough Council,Press & PR/Communications,14080184,INV11970,Access Intelligence Media & Communications Limited T/A Vuelio,R4534-SUP018,IT - Maint Agreements,26/06/2020,800.00 
http://statistics.data.gov.uk/id/local-authority-district/23UB,Cheltenham Borough Council,NNDR Collection,14080195,M05016,Airey Consultancy Services Limited (ACS Limited),R4400-LTC011,Services - Professional Fees,26/06/2020,"2,500.00 "
http://statistics.data.gov.uk/id/local-authority-district/23UB,Cheltenham Borough Council,Window & Door Renewals,14079942,FTINV00007362,Aperture Trading Ltd T/A Calibre Doors,C1107-CAH017,Building Works,19/06/2020,"29,083.17 "
http://statistics.data.gov.uk/id/local-authority-district/23UB,Cheltenham Borough Council,Cheltenham Municipal Offices,14079566,1108,Ardagh Management Limited,R2008-ADB101,R & M of Build - Reactive Repairs,05/06/2020,"7,027.95 "
http://statistics.data.gov.uk/id/local-authority-district/23UB,Cheltenham Borough Council,Car Parks - Off Street R&M,14079668,1114,Ardagh Management Limited,R2004-CPK101,R & M of Build Programmed,05/06/2020,"5,872.80 "
http://statistics.data.gov.uk/id/local-authority-district/23UB,Cheltenham Borough Council,Cheltenham Municipal Offices,14079690,1118,Ardagh Management Limited,R2008-ADB101,R & M of Build - Reactive Repairs,05/06/2020,"23,580.78 "
http://statistics.data.gov.uk/id/local-authority-district/23UB,Cheltenham Borough Council,Cheltenham Municipal Offices,14079691,1119,Ardagh Management Limited,R2008-ADB101,R & M of Build - Reactive Repairs,05/06/2020,"1,375.00 "
http://statistics.data.gov.uk/id/local-authority-district/23UB,Cheltenham Borough Council,Cheltenham Municipal Offices,14079692,1120,Ardagh Management Limited,R2008-ADB101,R & M of Build - Reactive Repairs,05/06/2020,"3,335.00 "
http://statistics.data.gov.uk/id/local-authority-district/23UB,Cheltenham Borough Council,Cheltenham Municipal Offices,14079693,1121,Ardagh Management Limited,R2008-ADB101,R & M of Build - Reactive Repairs,05/06/2020,"1,030.00 "
http://statistics.data.gov.uk/id/local-authority-district/23UB,Cheltenham Borough Council,"Cemetery, Crematorium and Churchyards",14080047,31733,Arkell and Hurcombe Limited,R4011-CCM001,Goods For Resale,19/06/2020,812.00 
http://statistics.data.gov.uk/id/local-authority-district/23UB,Cheltenham Borough Council,Cyber Business Park,14079855,176,ArthurSteenHorneAdamsonLtd,R4014-PLP105,Marketing,12/06/2020,829.00 
http://statistics.data.gov.uk/id/local-authority-district/23UB,Cheltenham Borough Council,Tourist/Visitor Information Centre,14079955,179,ArthurSteenHorneAdamsonLtd,R4014-TOU002,Marketing,12/06/2020,"5,000.00 "
http://statistics.data.gov.uk/id/local-authority-district/23UB,Cheltenham Borough Council,Sports & Open Spaces Repairs & Maintenance,14080192,1491,Artizan Roofing Limited,R2081-OPS122,Roof Repairs,26/06/2020,520.00 
http://statistics.data.gov.uk/id/local-authority-district/23UB,Cheltenham Borough Council,"Cemetery, Crematorium and Churchyards",14080062,16722,Ashdown Supplies,R4011-CCM001,Goods For Resale,19/06/2020,"1,450.00 "
http://statistics.data.gov.uk/id/local-authority-district/23UB,Cheltenham Borough Council,Window & Door Renewals,14079664,201,Assured Fire Door Services Ltd,C1005-CAH017,Surveyors Fees,05/06/2020,"2,556.00 "
http://statistics.data.gov.uk/id/local-authority-district/23UB,Cheltenham Borough Council,Income and Expenditure on Investment Properties and Changes in Their Fair Value,14080033,INV-0706,BEMS (Controls) Limited T/A BEMS Energy,R2083-FIE040,R&M of Build - Routine,19/06/2020,924.00 
http://statistics.data.gov.uk/id/local-authority-district/23UB,Cheltenham Borough Council,Treasury Management,14079848,BGC-MAAY-2020-00003156,BGC European Holdings,R4447-COR006,Brokerage Fees,12/06/2020,"2,468.50 "
http://statistics.data.gov.uk/id/local-authority-district/23UB,Cheltenham Borough Council,Treasury Management,14079849,BGC-MAY-2020-00002917,BGC European Holdings,R4447-COR006,Brokerage Fees,12/06/2020,"1,386.30 "
http://statistics.data.gov.uk/id/local-authority-district/23UB,Cheltenham Borough Council,Bulking Facility,14079654,209M00191,Biffa Waste Services Limited,R4401-RYC008,Services - Fees and Charges,12/06/2020,"10,007.76 "
http://statistics.data.gov.uk/id/local-authority-district/23UB,Cheltenham Borough Council,Income and Expenditure on Investment Properties and Changes in Their Fair Value,14079862,998318071,British Gas Business,R2100-FIE040,Electricity,12/06/2020,576.78 
http://statistics.data.gov.uk/id/local-authority-district/23UB,Cheltenham Borough Council,Repairs and Maintenance,14079596,SI00055645,British Gas Social Housing Ltd t/a PH Jones,R2040-HRA100,R & M of Build Central Heating,05/06/2020,"2,794.32 "
http://statistics.data.gov.uk/id/local-authority-district/23UB,Cheltenham Borough Council,Repairs and Maintenance,14080086,SI00055769,British Gas Social Housing Ltd t/a PH Jones,R2040-HRA100,R & M of Build Central Heating,26/06/2020,"4,075.05 "
http://statistics.data.gov.uk/id/local-authority-district/23UB,Cheltenham Borough Council,Repairs and Maintenance,14080088,SI00055770,British Gas Social Housing Ltd t/a PH Jones,R2040-HRA100,R & M of Build Central Heating,26/06/2020,"3,492.90 "
http://statistics.data.gov.uk/id/local-authority-district/23UB,Cheltenham Borough Council,Repairs and Maintenance,14080087,SI00055787,British Gas Social Housing Ltd t/a PH Jones,R2040-HRA100,R & M of Build Central Heating,26/06/2020,"4,851.25 "
http://statistics.data.gov.uk/id/local-authority-district/23UB,Cheltenham Borough Council,Repairs and Maintenance,14080017,SI00055789,British Gas Social Housing Ltd t/a PH Jones,R2040-HRA100,R & M of Build Central Heating,19/06/2020,"20,789.39 "
http://statistics.data.gov.uk/id/local-authority-district/23UB,Cheltenham Borough Council,Repairs and Maintenance,14080089,SI00055869,British Gas Social Housing Ltd t/a PH Jones,R2040-HRA100,R & M of Build Central Heating,26/06/2020,597.12 
http://statistics.data.gov.uk/id/local-authority-district/23UB,Cheltenham Borough Council,Repairs and Maintenance,14080187,SI00055891,British Gas Social Housing Ltd t/a PH Jones,R2040-HRA100,R & M of Build Central Heating,26/06/2020,"4,463.15 "
http://statistics.data.gov.uk/id/local-authority-district/23UB,Cheltenham Borough Council,Animal Control,14079953,801348434,Bromsgrove District Council,R4413-REG003,Dog Kennels Fees,12/06/2020,550.46 
http://statistics.data.gov.uk/id/local-authority-district/23UB,Cheltenham Borough Council,CCTV,14079554,216182,BT Redcare,R4548-CCT001,IT - Cabling and Network,05/06/2020,"4,200.00 "
http://statistics.data.gov.uk/id/local-authority-district/23UB,Cheltenham Borough Council,Cheltenham Municipal Offices,14078893,08/423299,Bunzl Cleaning and Hygiene Supplies,R4009-ADB101,Materials - Cleaning Materials,05/06/2020,807.16 
http://statistics.data.gov.uk/id/local-authority-district/23UB,Cheltenham Borough Council,ICT,14079842,SINV00165861,Business IT Support Team Limited,R4000-SUP005,Equipment Purchase,19/06/2020,850.00 
http://statistics.data.gov.uk/id/local-authority-district/23UB,Cheltenham Borough Council,Community Alarms,14079731,SIN722507,Celador Radio Limited,R4014-SPP002,Marketing,05/06/2020,630.00 
http://statistics.data.gov.uk/id/local-authority-district/23UB,Cheltenham Borough Council,Recreation Centre Repairs & Maintenance,14080050,301267/2020/5,Centrica Business Solutions (Generations) limited,R2100-REC111,Electricity,19/06/2020,"2,236.30 "
http://statistics.data.gov.uk/id/local-authority-district/23UB,Cheltenham Borough Council,Cheltenham Depot,14079611,97043,Cerberus Security & Monitoring Services Limited,R2705-ADB103,Security Systems,05/06/2020,643.50 
http://statistics.data.gov.uk/id/local-authority-district/23UB,Cheltenham Borough Council,Cheltenham Depot,14079612,97112,Cerberus Security & Monitoring Services Limited,R2705-ADB103,Security Systems,05/06/2020,750.75 
http://statistics.data.gov.uk/id/local-authority-district/23UB,Cheltenham Borough Council,Cheltenham Depot,14080073,97267,Cerberus Security & Monitoring Services Limited,R2705-ADB103,Security Systems,26/06/2020,750.75 
http://statistics.data.gov.uk/id/local-authority-district/23UB,Cheltenham Borough Council,Cheltenham Depot,14080072,97504,Cerberus Security & Monitoring Services Limited,R2705-ADB103,Security Systems,26/06/2020,643.50 
http://statistics.data.gov.uk/id/local-authority-district/23UB,Cheltenham Borough Council,Community Welfare Grants,14080193,COMMUNITY RESILIENCE HOUSING,Cheltenham Housing Aid Centre,R6280-GBD001,Grants,26/06/2020,"2,000.00 "
http://statistics.data.gov.uk/id/local-authority-district/23UB,Cheltenham Borough Council,Corona Virus,14080182,70071750,Cheltenham Leisure and Culture Limited,R2201-COV019,Room Hire,26/06/2020,"25,277.39 "
http://statistics.data.gov.uk/id/local-authority-district/23UB,Cheltenham Borough Council,Corona Virus,14079984,80010973,Cheltenham Leisure and Culture Limited,R2201-COV019,Room Hire,19/06/2020,"19,753.00 "
http://statistics.data.gov.uk/id/local-authority-district/23UB,Cheltenham Borough Council,Corona Virus,14080132,80010982,Cheltenham Leisure and Culture Limited,R2201-COV019,Room Hire,26/06/2020,"18,157.07 "
http://statistics.data.gov.uk/id/local-authority-district/23UB,Cheltenham Borough Council,Trees,14079675,683,Chris Arnold Tree Surgery,R2070-PLP006,Tree Work,05/06/2020,"1,200.00 "
http://statistics.data.gov.uk/id/local-authority-district/23UB,Cheltenham Borough Council,Revenues & Benefits Overheads,14079706,C/RB197662,Civica UK Limited,R4531-LTC101,IT - Purchase of Software,12/06/2020,"5,500.00 "
http://statistics.data.gov.uk/id/local-authority-district/23UB,Cheltenham Borough Council,Revenues & Benefits Overheads,14079958,C/RB198287,Civica UK Limited,R4531-LTC101,IT - Purchase of Software,12/06/2020,"6,250.00 "
http://statistics.data.gov.uk/id/local-authority-district/23UB,Cheltenham Borough Council,Play areas (Section 106),14079666,260520,Clark and Kent Contractors,C1100-CAP101,Construction,12/06/2020,"25,070.00 "
http://statistics.data.gov.uk/id/local-authority-district/23UB,Cheltenham Borough Council,Play areas (Section 106),14079666,260520,Clark and Kent Contractors,C1100-CAP101,Construction,12/06/2020,"25,070.00 "
http://statistics.data.gov.uk/id/local-authority-district/23UB,Cheltenham Borough Council,Play areas (Section 106),14079666,260520,Clark and Kent Contractors,C1100-CAP101,Construction,12/06/2020,"-25,070.00 "
http://statistics.data.gov.uk/id/local-authority-district/23UB,Cheltenham Borough Council,"Cemetery, Crematorium and Churchyards",14080115,12062020,Cleevelands Medical Centre,R4401-CCM001,Services - Fees and Charges,26/06/2020,"3,750.00 "
http://statistics.data.gov.uk/id/local-authority-district/23UB,Cheltenham Borough Council,CCTV,14079601,13919,Computerised & Digital Security Systems Limited,C4009-CAP201,C C T V,19/06/2020,"13,250.00 "
http://statistics.data.gov.uk/id/local-authority-district/23UB,Cheltenham Borough Council,CCTV,14079602,13945,Computerised & Digital Security Systems Limited,C4009-CAP201,C C T V,05/06/2020,"1,673.00 "
http://statistics.data.gov.uk/id/local-authority-district/23UB,Cheltenham Borough Council,Planning Policy,14080071,923,Cotswold Conservation Board,R6280-PLP001,Grants,26/06/2020,"3,774.00 "
http://statistics.data.gov.uk/id/local-authority-district/23UB,Cheltenham Borough Council,Civic Expenses,14080199,MAYOR EXPENSES,Councillor Roger Whyborn,R4600-DRM009,Mayor/Chairs Allowance,26/06/2020,610.00 
http://statistics.data.gov.uk/id/local-authority-district/23UB,Cheltenham Borough Council,Cheltenham Depot,14080186,INV-0199,County Drain Services,R2083-ADB103,R&M of Build - Routine,26/06/2020,"4,515.00 "
http://statistics.data.gov.uk/id/local-authority-district/23UB,Cheltenham Borough Council,Household Waste,14080010,3028447,Craemer UK Limited,R4000-WST001,Equipment Purchase,19/06/2020,"12,937.50 "
http://statistics.data.gov.uk/id/local-authority-district/23UB,Cheltenham Borough Council,Income and Expenditure on Investment Properties and Changes in Their Fair Value,14080040,323403,Devonshires Solicitors LLP,R4400-FIE040,Services - Professional Fees,26/06/2020,"2,105.50 "
http://statistics.data.gov.uk/id/local-authority-district/23UB,Cheltenham Borough Council,Income and Expenditure on Investment Properties and Changes in Their Fair Value,14079634,324778,Devonshires Solicitors LLP,R4400-FIE040,Services - Professional Fees,05/06/2020,"1,500.00 "
http://statistics.data.gov.uk/id/local-authority-district/23UB,Cheltenham Borough Council,Recreation Centre Repairs & Maintenance,14079956,INV-DG4894,Dive Gym Equipment Limited,R2083-REC111,R&M of Build - Routine,12/06/2020,993.42 
http://statistics.data.gov.uk/id/local-authority-district/23UB,Cheltenham Borough Council,Development costs - Monkscroft,14080056,45350,E.G. Carter & Co. Limited,C1107-CAH061,Building Works,19/06/2020,"202,357.58 "
http://statistics.data.gov.uk/id/local-authority-district/23UB,Cheltenham Borough Council,Development costs - Monkscroft,14080056,45350,E.G. Carter & Co. Limited,C1107-CAH061,Building Works,19/06/2020,"-202,357.58 "
http://statistics.data.gov.uk/id/local-authority-district/23UB,Cheltenham Borough Council,Development costs - Monkscroft,14080056,45350,E.G. Carter & Co. Limited,C1107-CAH061,Building Works,19/06/2020,"202,357.58 "
http://statistics.data.gov.uk/id/local-authority-district/23UB,Cheltenham Borough Council,Enterprise Way Phase 2,14080138,45353,E.G. Carter & Co. Limited,C1100-CAP506,Construction,26/06/2020,"69,906.21 "
http://statistics.data.gov.uk/id/local-authority-district/23UB,Cheltenham Borough Council,Parks & Gardens Operations,14079957,EA33198,Earth Anchors Limited,R4010-OPS001,Materials - Other Materials,19/06/2020,"1,088.00 "
http://statistics.data.gov.uk/id/local-authority-district/23UB,Cheltenham Borough Council,Community Welfare Grants,14080194,COMMUNITY RESILIENCE EAST G,East Glos Club Limited,R6280-GBD001,Grants,26/06/2020,684.00 
http://statistics.data.gov.uk/id/local-authority-district/23UB,Cheltenham Borough Council,Supervision and Management,14080201,1506,Ecoclean Environmental Ltd,R2700-HRA110,Contract Cleaning,26/06/2020,"2,160.00 "
http://statistics.data.gov.uk/id/local-authority-district/23UB,Cheltenham Borough Council,Income and Expenditure on Investment Properties and Changes in Their Fair Value,14079852,GB01G000087225,Ernst & Young LLP,R4400-FIE040,Services - Professional Fees,12/06/2020,"5,000.00 "
http://statistics.data.gov.uk/id/local-authority-district/23UB,Cheltenham Borough Council,Recreation Centre Repairs & Maintenance,14079881,17294,F T Leisure Limited,R2083-REC111,R&M of Build - Routine,12/06/2020,"1,200.00 "
http://statistics.data.gov.uk/id/local-authority-district/23UB,Cheltenham Borough Council,"Cemetery, Crematorium and Churchyards",14080156,20102248,Facultatieve Technologies Limited,R2007-CCM001,R & M of Plant Contracts,26/06/2020,"11,108.16 "
http://statistics.data.gov.uk/id/local-authority-district/23UB,Cheltenham Borough Council,Development costs - Pennine Road,14079745,G/013105,Gage-Tupper & Associates Ltd,C1111-CAH070,Clerk of Works,12/06/2020,660.00 
http://statistics.data.gov.uk/id/local-authority-district/23UB,Cheltenham Borough Council,Trees,14080139,357,Gaskins Treework Specialists,R2070-PLP006,Tree Work,26/06/2020,"6,056.00 "
http://statistics.data.gov.uk/id/local-authority-district/23UB,Cheltenham Borough Council,Cyber Business Park,14079839,411,GFirst LEP CIC,R4400-PLP105,Services - Professional Fees,12/06/2020,"4,954.61 "
http://statistics.data.gov.uk/id/local-authority-district/23UB,Cheltenham Borough Council,Cheltenham Municipal Offices,14079737,SI795821,Glasdon UK Limited,R2008-ADB101,R & M of Build - Reactive Repairs,05/06/2020,"2,455.94 "
http://statistics.data.gov.uk/id/local-authority-district/23UB,Cheltenham Borough Council,Car Parks - Off Street Operations,14079840,53782,Glevum Security Limited,R4401-CPK001,Services - Fees and Charges,19/06/2020,646.80 
http://statistics.data.gov.uk/id/local-authority-district/23UB,Cheltenham Borough Council,Human Resources,14079618,GCS/1920/1705,Gloucestershire Counselling Service,R4442-SUP003,Care Counselling Fees,05/06/2020,630.00 
http://statistics.data.gov.uk/id/local-authority-district/23UB,Cheltenham Borough Council,Pensions Backfunding,14080160,800010339,Gloucestershire Local Government Pension Scheme (LGPS ONLY),R1301-SUP038,Enhanced Pension,26/06/2020,"16,072.29 "
http://statistics.data.gov.uk/id/local-authority-district/23UB,Cheltenham Borough Council,Homelessness,14080167,10420,Gloucestershire Nightstop,R6280-HOM001,Grants,26/06/2020,"1,500.00 "
http://statistics.data.gov.uk/id/local-authority-district/23UB,Cheltenham Borough Council,Big Local Project,14080129,5540,Gloucestershire Rural Community Council,R6280-COM104,Grants,26/06/2020,"1,269.60 "
http://statistics.data.gov.uk/id/local-authority-district/23UB,Cheltenham Borough Council,"Cemetery, Crematorium and Churchyards",14079868,10026080,Goldingham Contracts Limited,R2702-CCM001,Pest Control,26/06/2020,625.00 
http://statistics.data.gov.uk/id/local-authority-district/23UB,Cheltenham Borough Council,Corporate Management,14079708,30018744,Grant Thornton UK LLP,R4430-COR001,Audit Fees,12/06/2020,"17,011.00 "
http://statistics.data.gov.uk/id/local-authority-district/23UB,Cheltenham Borough Council,Income and Expenditure on Investment Properties and Changes in Their Fair Value,14080080,10726,H & W Facilities Management Limited,R2700-FIE040,Contract Cleaning,26/06/2020,572.87 
http://statistics.data.gov.uk/id/local-authority-district/23UB,Cheltenham Borough Council,Cyber Business Park,14079711,90745178,Hatch Associates Ltd,R4411-PLP105,Consultancy Fees,05/06/2020,"23,800.00 "
http://statistics.data.gov.uk/id/local-authority-district/23UB,Cheltenham Borough Council,Cyber Business Park,14080188,7942,HEM DES LLP,R4401-PLP105,Services - Fees and Charges,26/06/2020,"3,850.00 "
http://statistics.data.gov.uk/id/local-authority-district/23UB,Cheltenham Borough Council,General Fund Balance Sheet,14079961,CISDEDUCT0605-050620,HMRC (CBC - CIS),B6220-BAL100,CIS Deductions Control (reallocated),12/06/2020,"2,984.43 "
http://statistics.data.gov.uk/id/local-authority-district/23UB,Cheltenham Borough Council,Training & Development,14079670,214PS00149425APPRENTLEVY0220,HMRC (CBC - PAYE & NIC),R1425-SUP020,Apprentice Levy,05/06/2020,"1,803.00 "
http://statistics.data.gov.uk/id/local-authority-district/23UB,Cheltenham Borough Council,Car Park Income Collection,14079843,25263,Hoge 100 Business Systems Limited,R4534-CPK002,IT - Maint Agreements,12/06/2020,"1,267.00 "
http://statistics.data.gov.uk/id/local-authority-district/23UB,Cheltenham Borough Council,Environmental Health General,14080063,601/20,Ian George (Funerals) Limited,R4433-REG001,Burial Fees - National Assitance Act,26/06/2020,"1,300.00 "
http://statistics.data.gov.uk/id/local-authority-district/23UB,Cheltenham Borough Council,Police & Crime Commissioner Elections,14079552,7029339,Idox Software Limited,R1652-ELE008,Training Fees (External),25/06/2020,"2,080.00 "
http://statistics.data.gov.uk/id/local-authority-district/23UB,Cheltenham Borough Council,Development costs - Pennine Road,14079769,006 IN024247,J Harper & Sons (Leominster) Limited,C1107-CAH070,Building Works,12/06/2020,"91,220.79 "
http://statistics.data.gov.uk/id/local-authority-district/23UB,Cheltenham Borough Council,Supervision and Management,14079704,RND300520/comb-19,John Gillman & Sons (Electrical) Limited (Gillmans Appliance),R4002-HRA110,Tools & Equipment - Lease/Rental,12/06/2020,"1,950.78 "
http://statistics.data.gov.uk/id/local-authority-district/23UB,Cheltenham Borough Council,Treasury Management,14079702,3199,King & Shaxson Limited,R4447-COR006,Brokerage Fees,05/06/2020,642.19 
http://statistics.data.gov.uk/id/local-authority-district/23UB,Cheltenham Borough Council,"Cemetery, Crematorium and Churchyards",14079751,1528,Lee Snashfold Crematoria Management & Consultancy Ltd,R4400-CCM001,Services - Professional Fees,05/06/2020,"4,347.60 "
http://statistics.data.gov.uk/id/local-authority-district/23UB,Cheltenham Borough Council,"Cemetery, Crematorium and Churchyards",14079750,1536,Lee Snashfold Crematoria Management & Consultancy Ltd,R4400-CCM001,Services - Professional Fees,05/06/2020,"4,347.60 "
http://statistics.data.gov.uk/id/local-authority-district/23UB,Cheltenham Borough Council,"Cemetery, Crematorium and Churchyards",14079858,1544,Lee Snashfold Crematoria Management & Consultancy Ltd,R4400-CCM001,Services - Professional Fees,12/06/2020,"3,512.60 "
http://statistics.data.gov.uk/id/local-authority-district/23UB,Cheltenham Borough Council,"Cemetery, Crematorium and Churchyards",14080061,1549,Lee Snashfold Crematoria Management & Consultancy Ltd,R4400-CCM001,Services - Professional Fees,19/06/2020,"4,440.85 "
http://statistics.data.gov.uk/id/local-authority-district/23UB,Cheltenham Borough Council,"Cemetery, Crematorium and Churchyards",14080155,1551,Lee Snashfold Crematoria Management & Consultancy Ltd,R4400-CCM001,Services - Professional Fees,26/06/2020,"3,549.75 "
http://statistics.data.gov.uk/id/local-authority-district/23UB,Cheltenham Borough Council,"Cemetery, Crematorium and Churchyards",14080223,1552,Lee Snashfold Crematoria Management & Consultancy Ltd,R4400-CCM001,Services - Professional Fees,26/06/2020,"4,378.35 "
http://statistics.data.gov.uk/id/local-authority-district/23UB,Cheltenham Borough Council,Repairs and Maintenance,14079754,1206938,Liberty Gas Group Ltd,R2040-HRA100,R & M of Build Central Heating,12/06/2020,"19,314.90 "
http://statistics.data.gov.uk/id/local-authority-district/23UB,Cheltenham Borough Council,Repairs and Maintenance,14079753,1206939,Liberty Gas Group Ltd,R2040-HRA100,R & M of Build Central Heating,12/06/2020,"3,036.00 "
http://statistics.data.gov.uk/id/local-authority-district/23UB,Cheltenham Borough Council,Repairs and Maintenance,14079755,1206970,Liberty Gas Group Ltd,R2040-HRA100,R & M of Build Central Heating,12/06/2020,"7,433.70 "
http://statistics.data.gov.uk/id/local-authority-district/23UB,Cheltenham Borough Council,ICT,14079599,16002827,LinchPin Networks Limited,R4548-SUP005,IT - Cabling and Network,05/06/2020,988.50 
http://statistics.data.gov.uk/id/local-authority-district/23UB,Cheltenham Borough Council,ICT,14079619,16002834,LinchPin Networks Limited,R4548-SUP005,IT - Cabling and Network,05/06/2020,"4,672.50 "
http://statistics.data.gov.uk/id/local-authority-district/23UB,Cheltenham Borough Council,ICT,14079986,16002875,LinchPin Networks Limited,R4548-SUP005,IT - Cabling and Network,19/06/2020,988.50 
http://statistics.data.gov.uk/id/local-authority-district/23UB,Cheltenham Borough Council,Repairs and Maintenance,14079376,SIN00100858/A,Low Carbon Exchange (LCX Solar Limited),R2004-HRA100,R & M of Build Programmed,19/06/2020,"17,799.37 "
http://statistics.data.gov.uk/id/local-authority-district/23UB,Cheltenham Borough Council,General Fund Balance Sheet,14080226,BAL HELD @ 24/6/20,Mayor of Cheltenham's Charity Account,B6170-BAL100,Short Term Revenue Creditors (incl RIA) - Other entities and individuals,26/06/2020,"1,524.00 "
http://statistics.data.gov.uk/id/local-authority-district/23UB,Cheltenham Borough Council,"Cemetery, Crematorium and Churchyards",14079857,310520,Mr J Sureda,R4401-CCM001,Services - Fees and Charges,12/06/2020,806.62 
http://statistics.data.gov.uk/id/local-authority-district/23UB,Cheltenham Borough Council,Sports & Open Spaces Operations,14080166,GRAZING PAYMENT 6MONTH,Mrs A North (Farmer/Grazier),R2071-OPS002,Open Spaces and Grassed Areas,26/06/2020,"1,750.00 "
http://statistics.data.gov.uk/id/local-authority-district/23UB,Cheltenham Borough Council,"Cemetery, Crematorium and Churchyards",14079671,INV-0060,Neil Curtis & Sons Funeral Contractors Ltd,R4400-CCM001,Services - Professional Fees,05/06/2020,"8,575.00 "
http://statistics.data.gov.uk/id/local-authority-district/23UB,Cheltenham Borough Council,"Cemetery, Crematorium and Churchyards",14079856,INV-0061,Neil Curtis & Sons Funeral Contractors Ltd,R4400-CCM001,Services - Professional Fees,12/06/2020,"3,150.00 "
http://statistics.data.gov.uk/id/local-authority-district/23UB,Cheltenham Borough Council,"Cemetery, Crematorium and Churchyards",14080027,INV-0110,Neil Curtis & Sons Funeral Contractors Ltd,R4400-CCM001,Services - Professional Fees,19/06/2020,"1,350.00 "
http://statistics.data.gov.uk/id/local-authority-district/23UB,Cheltenham Borough Council,Press & PR/Communications,14079847,Q444129,NLA Media Access Limited,R4402-SUP018,Services - General Licences,12/06/2020,"2,224.00 "
http://statistics.data.gov.uk/id/local-authority-district/23UB,Cheltenham Borough Council,"Cemetery, Crematorium and Churchyards",14079876,54792,Oconnor Construction Company Ltd,R3201-CCM001,Hire of Plant,19/06/2020,967.00 
http://statistics.data.gov.uk/id/local-authority-district/23UB,Cheltenham Borough Council,Cyber Business Park,14079713,20080305,Omnigenix,R4411-PLP105,Consultancy Fees,05/06/2020,"5,999.75 "
http://statistics.data.gov.uk/id/local-authority-district/23UB,Cheltenham Borough Council,Town Hall Repairs & Maintenance,14079836,68743,P & R Heating Limited,R2083-CUL112,R&M of Build - Routine,12/06/2020,593.68 
http://statistics.data.gov.uk/id/local-authority-district/23UB,Cheltenham Borough Council,Cheltenham Municipal Offices,14079802,68744,P & R Heating Limited,R2083-ADB101,R&M of Build - Routine,12/06/2020,660.10 
http://statistics.data.gov.uk/id/local-authority-district/23UB,Cheltenham Borough Council,Cheltenham Depot,14079805,68747,P & R Heating Limited,R2083-ADB103,R&M of Build - Routine,12/06/2020,694.32 
http://statistics.data.gov.uk/id/local-authority-district/23UB,Cheltenham Borough Council,Recreation Centre Repairs & Maintenance,14079807,68749,P & R Heating Limited,R2083-REC111,R&M of Build - Routine,12/06/2020,"1,237.68 "
http://statistics.data.gov.uk/id/local-authority-district/23UB,Cheltenham Borough Council,Recreation Centre Repairs & Maintenance,14080020,68862,P & R Heating Limited,R2080-REC111,Mechanical Services,19/06/2020,600.00 
http://statistics.data.gov.uk/id/local-authority-district/23UB,Cheltenham Borough Council,Recreation Centre Repairs & Maintenance,14080043,68863,P & R Heating Limited,R2080-REC111,Mechanical Services,19/06/2020,"3,795.00 "
http://statistics.data.gov.uk/id/local-authority-district/23UB,Cheltenham Borough Council,Recreation Centre Repairs & Maintenance,14080090,68888,P & R Heating Limited,R2062-REC111,R & M of Build Cyclical Electrical Remedials,19/06/2020,787.00 
http://statistics.data.gov.uk/id/local-authority-district/23UB,Cheltenham Borough Council,Property Services,14080180,31648,Pennington Choices,R4401-SUP025,Services - Fees and Charges,26/06/2020,800.00 
http://statistics.data.gov.uk/id/local-authority-district/23UB,Cheltenham Borough Council,Public Realm Improvements - High Street Phase 2,14079844,PC5720,Perfect Circle JV Limited,C1105-CAP207,Design Services,12/06/2020,"13,374.19 "
http://statistics.data.gov.uk/id/local-authority-district/23UB,Cheltenham Borough Council,Democratic Representation and Management,14079658,OP/I658479,Probrand Limited,R4530-DRM001,IT - Purchase of Hardware,05/06/2020,830.80 
http://statistics.data.gov.uk/id/local-authority-district/23UB,Cheltenham Borough Council,Town Hall Repairs & Maintenance,14080055,29883,R F Gardiner Limited T/as Gardiners,R2008-CUL112,R & M of Build - Reactive Repairs,19/06/2020,"1,836.75 "
http://statistics.data.gov.uk/id/local-authority-district/23UB,Cheltenham Borough Council,Parks & Gardens Repairs & Maintenance,14079694,30041,R F Gardiner Limited T/as Gardiners,R2008-OPS121,R & M of Build - Reactive Repairs,05/06/2020,"1,750.00 "
http://statistics.data.gov.uk/id/local-authority-district/23UB,Cheltenham Borough Council,Pittville Pump Room Repairs & Maintenance,14079743,30056,R F Gardiner Limited T/as Gardiners,R2078-CUL113,R&M of Build - external structures,05/06/2020,"1,947.00 "
http://statistics.data.gov.uk/id/local-authority-district/23UB,Cheltenham Borough Council,Car Parks - Off Street R&M,14079722,30057,R F Gardiner Limited T/as Gardiners,R2008-CPK101,R & M of Build - Reactive Repairs,05/06/2020,670.08 
http://statistics.data.gov.uk/id/local-authority-district/23UB,Cheltenham Borough Council,Cheltenham Depot,14079727,30062,R F Gardiner Limited T/as Gardiners,R2008-ADB103,R & M of Build - Reactive Repairs,05/06/2020,586.63 
http://statistics.data.gov.uk/id/local-authority-district/23UB,Cheltenham Borough Council,Pittville Pump Room Repairs & Maintenance,14079877,30071,R F Gardiner Limited T/as Gardiners,R2008-CUL113,R & M of Build - Reactive Repairs,12/06/2020,"5,850.00 "
http://statistics.data.gov.uk/id/local-authority-district/23UB,Cheltenham Borough Council,Printing Services,14079640,101554645,Ricoh UK Limited,R4300-SUP022,Printing - Services,05/06/2020,693.87 
http://statistics.data.gov.uk/id/local-authority-district/23UB,Cheltenham Borough Council,Printing Services,14079641,101555321,Ricoh UK Limited,R4300-SUP022,Printing - Services,05/06/2020,763.11 
http://statistics.data.gov.uk/id/local-authority-district/23UB,Cheltenham Borough Council,Printing Services,14079649,101611127,Ricoh UK Limited,R4300-SUP022,Printing - Services,05/06/2020,"6,059.26 "
http://statistics.data.gov.uk/id/local-authority-district/23UB,Cheltenham Borough Council,Printing Services,14079873,101613068,Ricoh UK Limited,R4300-SUP022,Printing - Services,12/06/2020,693.87 
http://statistics.data.gov.uk/id/local-authority-district/23UB,Cheltenham Borough Council,Printing Services,14079872,101615424,Ricoh UK Limited,R4300-SUP022,Printing - Services,12/06/2020,763.11 
http://statistics.data.gov.uk/id/local-authority-district/23UB,Cheltenham Borough Council,Council Tax Collection,14080118,9061041570,Royal Mail (Billing),R4521-LTC001,Postages - franking machine,26/06/2020,559.02 
http://statistics.data.gov.uk/id/local-authority-district/23UB,Cheltenham Borough Council,Income and Expenditure on Investment Properties and Changes in Their Fair Value,14079653,D114314,Savills UK Main Client Account,R2001-FIE040,R & M of Fix & Fit - General,05/06/2020,"6,131.00 "
http://statistics.data.gov.uk/id/local-authority-district/23UB,Cheltenham Borough Council,Income and Expenditure on Investment Properties and Changes in Their Fair Value,14079655,D114315,Savills UK Main Client Account,R2001-FIE040,R & M of Fix & Fit - General,05/06/2020,"2,167.00 "
http://statistics.data.gov.uk/id/local-authority-district/23UB,Cheltenham Borough Council,Income and Expenditure on Investment Properties and Changes in Their Fair Value,14079656,D114316,Savills UK Main Client Account,R2001-FIE040,R & M of Fix & Fit - General,05/06/2020,501.00 
http://statistics.data.gov.uk/id/local-authority-district/23UB,Cheltenham Borough Council,Tourist/Visitor Information Centre,14079830,NM33455,Simpleview t/a New Mind Internet Consultancy Limited,R4400-TOU002,Services - Professional Fees,26/06/2020,"4,425.00 "
http://statistics.data.gov.uk/id/local-authority-district/23UB,Cheltenham Borough Council,Allotments,14079859,S407586,Smith's (Gloucester) Limited,R4323-OPS004,Skip Hire,12/06/2020,811.00 
http://statistics.data.gov.uk/id/local-authority-district/23UB,Cheltenham Borough Council,Bulking Facility,14079869,40295,South West Wood Products Limited,R2703-RYC008,Waste Management,19/06/2020,"1,189.44 "
http://statistics.data.gov.uk/id/local-authority-district/23UB,Cheltenham Borough Council,Cemetery & Crematorium Repairs & Maintenance,14079954,10038945,Sovereign Fire & Security Ltd,R2083-CCM111,R&M of Build - Routine,12/06/2020,"1,414.00 "
http://statistics.data.gov.uk/id/local-authority-district/23UB,Cheltenham Borough Council,Trees,14079674,1933,Spatrees,R2070-PLP006,Tree Work,05/06/2020,"1,000.00 "
http://statistics.data.gov.uk/id/local-authority-district/23UB,Cheltenham Borough Council,Cyber Business Park,14079595,1318,Squashed Robot Films Ltd,R4400-PLP105,Services - Professional Fees,05/06/2020,"2,300.00 "
http://statistics.data.gov.uk/id/local-authority-district/23UB,Cheltenham Borough Council,Cyber Business Park,14079950,2436,Sustainable Direction Ltd,R4411-PLP105,Consultancy Fees,12/06/2020,"1,000.00 "
http://statistics.data.gov.uk/id/local-authority-district/23UB,Cheltenham Borough Council,"Cemetery, Crematorium and Churchyards",14080079,29383,Teleshore UK Limited,R4026-CCM001,Operational Materials,19/06/2020,"7,218.00 "
http://statistics.data.gov.uk/id/local-authority-district/23UB,Cheltenham Borough Council,Cyber Business Park,14079614,18143,Tetlow King Planning Ltd,R4411-PLP105,Consultancy Fees,05/06/2020,"1,481.00 "
http://statistics.data.gov.uk/id/local-authority-district/23UB,Cheltenham Borough Council,Property Services,14080123,DEBT107748,Tewkesbury Borough Council,R4401-SUP025,Services - Fees and Charges,26/06/2020,"4,230.00 "
http://statistics.data.gov.uk/id/local-authority-district/23UB,Cheltenham Borough Council,Cultural - Service Management and Support Services,14079946,70071661,The Cheltenham Trust,R5001-CSM001,TPP - Major External Contractors,12/06/2020,"9,351.00 "
http://statistics.data.gov.uk/id/local-authority-district/23UB,Cheltenham Borough Council,Cultural - Service Management and Support Services,14080131,70071705,The Cheltenham Trust,R5001-CSM001,TPP - Major External Contractors,26/06/2020,"67,606.75 "
http://statistics.data.gov.uk/id/local-authority-district/23UB,Cheltenham Borough Council,General Fund Balance Sheet,14079712,CCV JUNE 20 G1,The Midcounties Co-operative Limited,B6170-BAL100,Short Term Revenue Creditors (incl RIA) - Other entities and individuals,05/06/2020,928.83 
http://statistics.data.gov.uk/id/local-authority-district/23UB,Cheltenham Borough Council,Planning Policy,14079616,1800003055,The Planning Inspectorate,R4400-PLP001,Services - Professional Fees,05/06/2020,"25,818.00 "
http://statistics.data.gov.uk/id/local-authority-district/23UB,Cheltenham Borough Council,Adaptations for the Disabled (CBC),14080097,19/00083/DMTLA FINAL,The Surveying Practice - Client Account,C1107-CAH028,Building Works,26/06/2020,"15,821.86 "
http://statistics.data.gov.uk/id/local-authority-district/23UB,Cheltenham Borough Council,Disabled Facility Grants,14079831,19/00092/DMOC FINAL,The Surveying Practice - Client Account,C5000-CAP221,Grants,12/06/2020,"4,263.27 "
http://statistics.data.gov.uk/id/local-authority-district/23UB,Cheltenham Borough Council,Adaptations for the Disabled (CBC),14080096,19/00093/DMTLA FINAL,The Surveying Practice - Client Account,C1107-CAH028,Building Works,26/06/2020,"11,231.43 "
http://statistics.data.gov.uk/id/local-authority-district/23UB,Cheltenham Borough Council,Adaptations for the Disabled (CBC),14080177,19/0104/DMTLA FINAL,The Surveying Practice - Client Account,C1107-CAH028,Building Works,26/06/2020,"8,212.52 "
http://statistics.data.gov.uk/id/local-authority-district/23UB,Cheltenham Borough Council,Tourist/Visitor Information Centre,14080059,7462,Third Floor Design Limited,R4014-TOU002,Marketing,19/06/2020,"1,500.00 "
http://statistics.data.gov.uk/id/local-authority-district/23UB,Cheltenham Borough Council,Treasury Management,14079742,May-20,Tradition UK Limited,R4447-COR006,Brokerage Fees,12/06/2020,989.04 
http://statistics.data.gov.uk/id/local-authority-district/23UB,Cheltenham Borough Council,Cyber Business Park,14079841,10534,Transport Planning Association Ltd,R4411-PLP105,Consultancy Fees,12/06/2020,"3,236.81 "
http://statistics.data.gov.uk/id/local-authority-district/23UB,Cheltenham Borough Council,Smart Working Project,14079741,11105,Troup Bywaters + Anders,C1100-CAP513,Construction,12/06/2020,"3,000.00 "
http://statistics.data.gov.uk/id/local-authority-district/23UB,Cheltenham Borough Council,Cyber Business Park,14080049,2961331,Trowers & Hamlins LLP,R4411-PLP105,Consultancy Fees,19/06/2020,"1,657.00 "
http://statistics.data.gov.uk/id/local-authority-district/23UB,Cheltenham Borough Council,Cyber Business Park,14079605,2972126,Trowers & Hamlins LLP,R4411-PLP105,Consultancy Fees,05/06/2020,"1,861.00 "
http://statistics.data.gov.uk/id/local-authority-district/23UB,Cheltenham Borough Council,Cyber Business Park,14080168,2976828,Trowers & Hamlins LLP,R4411-PLP105,Consultancy Fees,26/06/2020,"7,590.00 "
http://statistics.data.gov.uk/id/local-authority-district/23UB,Cheltenham Borough Council,Cyber Business Park,14079606,2982659,Trowers & Hamlins LLP,R4411-PLP105,Consultancy Fees,05/06/2020,725.00 
http://statistics.data.gov.uk/id/local-authority-district/23UB,Cheltenham Borough Council,Supervision and Management,14080084,INV/50352156,Tunstall Healthcare (UK) Limited,R4445-HRA110,Communal Alarms - Monitoring & Maintenance,26/06/2020,785.80 
http://statistics.data.gov.uk/id/local-authority-district/23UB,Cheltenham Borough Council,Household Waste,14079740,60033907,Ubico Limited,R5001-WST001,TPP - Major External Contractors,12/06/2020,"746,798.91 "
http://statistics.data.gov.uk/id/local-authority-district/23UB,Cheltenham Borough Council,Corporate Management,14080028,BN1-00062055,Veale Wasbrough Vizards,R4420-COR001,Legal Expenses And Court Costs,19/06/2020,"2,000.00 "
http://statistics.data.gov.uk/id/local-authority-district/23UB,Cheltenham Borough Council,Bulky Household Waste,14079734,20-Apr,Vision 21,R4401-WST004,Services - Fees and Charges,12/06/2020,"3,456.25 "
http://statistics.data.gov.uk/id/local-authority-district/23UB,Cheltenham Borough Council,"Cemetery, Crematorium and Churchyards",14079870,20-05-CHELTENH,Vivedia Limited,R4011-CCM001,Goods For Resale,12/06/2020,"1,443.00 "
http://statistics.data.gov.uk/id/local-authority-district/23UB,Cheltenham Borough Council,Cyber Business Park,14079604,46868,"Vivid Resourcing, a division of g2V Recruitment Group Limited",R4400-PLP105,Services - Professional Fees,05/06/2020,"2,885.00 "
http://statistics.data.gov.uk/id/local-authority-district/23UB,Cheltenham Borough Council,Cyber Business Park,14079650,47001,"Vivid Resourcing, a division of g2V Recruitment Group Limited",R4400-PLP105,Services - Professional Fees,05/06/2020,"2,885.00 "
http://statistics.data.gov.uk/id/local-authority-district/23UB,Cheltenham Borough Council,Cyber Business Park,14080121,47212,"Vivid Resourcing, a division of g2V Recruitment Group Limited",R4400-PLP105,Services - Professional Fees,26/06/2020,"1,731.00 "
http://statistics.data.gov.uk/id/local-authority-district/23UB,Cheltenham Borough Council,Cyber Business Park,14080014,47436,"Vivid Resourcing, a division of g2V Recruitment Group Limited",R4400-PLP105,Services - Professional Fees,19/06/2020,"2,885.00 "
http://statistics.data.gov.uk/id/local-authority-district/23UB,Cheltenham Borough Council,Cyber Business Park,14080120,47588,"Vivid Resourcing, a division of g2V Recruitment Group Limited",R4400-PLP105,Services - Professional Fees,26/06/2020,"2,885.00 "
http://statistics.data.gov.uk/id/local-authority-district/23UB,Cheltenham Borough Council,Supervision and Management,14079631,94943897,Vodafone Limited,R4507-HRA110,Comms - Mobile Telephones,05/06/2020,"7,550.58 "
http://statistics.data.gov.uk/id/local-authority-district/23UB,Cheltenham Borough Council,New Heating Installations,14079770,46143100,Wales & West Utilities Limited,C1107-CAH009,Building Works,12/06/2020,596.00 
http://statistics.data.gov.uk/id/local-authority-district/23UB,Cheltenham Borough Council,Cyber Business Park,14080051,GM12997,Wardell Armstrong LLP,R4411-PLP105,Consultancy Fees,19/06/2020,624.95 
http://statistics.data.gov.uk/id/local-authority-district/23UB,Cheltenham Borough Council,Cyber Business Park,14080053,GM13329,Wardell Armstrong LLP,R4411-PLP105,Consultancy Fees,19/06/2020,"8,850.07 "
http://statistics.data.gov.uk/id/local-authority-district/23UB,Cheltenham Borough Council,Income and Expenditure on Investment Properties and Changes in Their Fair Value,14080077,3974,Water Hygiene Centre,R2004-FIE040,R & M of Build Programmed,26/06/2020,694.08 
http://statistics.data.gov.uk/id/local-authority-district/23UB,Cheltenham Borough Council,Parks & Gardens Operations,14079696,696,Watkins Iles Limited,R2007-OPS001,R & M of Plant Contracts,05/06/2020,"2,614.74 "
http://statistics.data.gov.uk/id/local-authority-district/23UB,Cheltenham Borough Council,Arle Road Nursery Operations,14079995,701,Watkins Iles Limited,R4010-OPS101,Materials - Other Materials,19/06/2020,"1,720.00 "
http://statistics.data.gov.uk/id/local-authority-district/23UB,Cheltenham Borough Council,Parks & Gardens Operations,14080068,707,Watkins Iles Limited,R2007-OPS001,R & M of Plant Contracts,26/06/2020,"1,850.00 "
http://statistics.data.gov.uk/id/local-authority-district/23UB,Cheltenham Borough Council,Community Welfare Grants,14080046,COMMUNITY RESILIENCE BOYS B2,4TH CHELTENHAM BOYS BRIGADE,R6280-GBD001,Grants,26/06/2020,750.00 
http://statistics.data.gov.uk/id/local-authority-district/23UB,Cheltenham Borough Council,Community Welfare Grants,14080045,COMMUNITY RESILIENCE BATTLE,BATTLEDOWN FRIENDS GROUP,R6280-GBD001,Grants,26/06/2020,798.00 
http://statistics.data.gov.uk/id/local-authority-district/23UB,Cheltenham Borough Council,Community Welfare Grants,14079850,COMMUNITY RESILIENCE,BUILDING CIRCLES,R6280-GBD001,Grants,12/06/2020,"1,800.00 "
http://statistics.data.gov.uk/id/local-authority-district/23UB,Cheltenham Borough Council,Community Welfare Grants,14080196,COMMUNITY RESILIENCE FILM,CHELTENHAM INTERNATIONAL FILM TRUST,R6280-GBD001,Grants,26/06/2020,"3,000.00 "
http://statistics.data.gov.uk/id/local-authority-district/23UB,Cheltenham Borough Council,Community Welfare Grants,14079698,COMMUNITY RESILIENCE HOLLIE,HOLLIE GAZZARD TRUST,R6280-GBD001,Grants,12/06/2020,799.90 
http://statistics.data.gov.uk/id/local-authority-district/23UB,Cheltenham Borough Council,Community Welfare Grants,14079676,COMMUNITY RESILIENCE INFOBUZ,Infobuzz,R6280-GBD001,Grants,12/06/2020,"5,000.00 "
http://statistics.data.gov.uk/id/local-authority-district/23UB,Cheltenham Borough Council,Community Welfare Grants,14079966,COMMUNITY RESILIENCE MENSHED,MEN IN SHEDS C & G,R6280-GBD001,Grants,19/06/2020,720.00 
http://statistics.data.gov.uk/id/local-authority-district/23UB,Cheltenham Borough Council,Rent Control,14079960,RENT REFUND REDACTED,REDACTED,R9910-HRA900,Refund of Overpaid Rent,12/06/2020,"5,014.00 "
http://statistics.data.gov.uk/id/local-authority-district/23UB,Cheltenham Borough Council,Rent Control,14079688,REFUND REDACTED,REDACTED,R9910-HRA900,Refund of Overpaid Rent,05/06/2020,678.98 
http://statistics.data.gov.uk/id/local-authority-district/23UB,Cheltenham Borough Council,Rent Control,14079867,REFUND REDACTED,REDACTED,R9910-HRA900,Refund of Overpaid Rent,12/06/2020,715.99 
http://statistics.data.gov.uk/id/local-authority-district/23UB,Cheltenham Borough Council,Homelessness,14079829,REDACTED,PETER BALL,R6280-HOM001,Grants,12/06/2020,588.00 
http://statistics.data.gov.uk/id/local-authority-district/23UB,Cheltenham Borough Council,Community Welfare Grants,14080197,COMMUNITY RESILIENCE ST P2,ST PHILIP AND ST JAMES PCC,R6280-GBD001,Grants,26/06/2020,801.03 
http://statistics.data.gov.uk/id/local-authority-district/23UB,Cheltenham Borough Council,Community Welfare Grants,14079467,COMMUNITY RESILIENCE HYGIENE,THE HYGIENE BANK,R6280-GBD001,Grants,05/06/2020,"1,407.00 "
http://statistics.data.gov.uk/id/local-authority-district/23UB,Cheltenham Borough Council,Community Welfare Grants,14079699,COMMUNITY RESILIENCE RENDEZ,THE RENDEZVOUS SOCIETY (GLOBAL FOOTSTEPS),R6280-GBD001,Grants,12/06/2020,"1,380.00 "
http://statistics.data.gov.uk/id/local-authority-district/23UB,Cheltenham Borough Council,Community Welfare Grants,14080029,COMMUNITY RESILIENCE CHRIST,Youth for Christ Gloucestershire,R6280-GBD001,Grants,19/06/2020,770.00 
Bank Transactions,,,,,,,,,
http://statistics.data.gov.uk/id/local-authority-district/23UB,Cheltenham Borough Council,Cheltenham Depot,10033355,Bank Transactions,"WATER PLUS - 0406002149 - ENVIRONMENTAL MAINTENANCE, SWINDON ROAD, CHELTENHAM WATER SUPPLY - TO BE CREDITED.",R2401-ADB103,Water Services - Metered,17/06/2020,"11,862.79 "
http://statistics.data.gov.uk/id/local-authority-district/23UB,Cheltenham Borough Council,Cheltenham Depot,10033355,Bank Transactions,"WATER PLUS - 0406003059 - ENVIRONMENTAL MAINTENANCE, SWINDON ROAD, CHELTENHAM - SEWERAGE & DRAINAGE SUPPLY - TO BE CREDITED.",R2402-ADB103,Sewerage and Environmental Services,17/06/2020,"19,988.54 "
http://statistics.data.gov.uk/id/local-authority-district/23UB,Cheltenham Borough Council,Phase 3 Development,10033106,Bank Transactions,Purchase of REDACTED,C1001-CAH039,Acquisition of Buildings,02/06/2020,"200,000.00 "
http://statistics.data.gov.uk/id/local-authority-district/23UB,Cheltenham Borough Council,"Cemetery, Crematorium and Churchyards",10033277,Bank Transactions,SIEMENS FIN SERV - DDA8949078,R4002-CCM001,Tools & Equipment - Lease/Rental,12/06/2020,659.92 
http://statistics.data.gov.uk/id/local-authority-district/23UB,Cheltenham Borough Council,Treasury Management,10033110,Bank Transactions,SERVICE CHARGES - REF 310438804,R4403-COR006,Bank Charges,01/06/2020,"1,439.77 "
http://statistics.data.gov.uk/id/local-authority-district/23UB,Cheltenham Borough Council,Treasury Management,10033478,Bank Transactions,SERVICE CHARGES REF 312062670,R4403-COR006,Bank Charges,29/06/2020,640.21 
http://statistics.data.gov.uk/id/local-authority-district/23UB,Cheltenham Borough Council,Treasury Management,10033291,Bank Transactions,CARDNET SERVICE CHARGES - 169118221 - 5404 36169118221,R4428-COR006,Services - credit card charges,12/06/2020,"1,822.68 "
http://statistics.data.gov.uk/id/local-authority-district/23UB,Cheltenham Borough Council,Treasury Management,10033291,Bank Transactions,CARDNET SERVICE CHARGES 169118221 - 5404 36500221866,R4428-COR006,Services - credit card charges,12/06/2020,"4,172.30 "
http://statistics.data.gov.uk/id/local-authority-district/23UB,Cheltenham Borough Council,Treasury Management,10033291,Bank Transactions,CARDNET SERVICE CHARGES 500200738,R4428-COR006,Services - credit card charges,12/06/2020,602.57 
http://statistics.data.gov.uk/id/local-authority-district/23UB,Cheltenham Borough Council,Car Parks - Off Street Operations,10033478,Bank Transactions,KENNET EQUIPMENT - 181218768401705562,R4002-CPK001,Tools & Equipment - Lease/Rental,29/06/2020,"8,040.17 "
http://statistics.data.gov.uk/id/local-authority-district/23UB,Cheltenham Borough Council,Pittville Pump Room Repairs & Maintenance,10033317,Bank Transactions,PROTECTOR INSURANCE 816878 PUMP ROOM,R2008-CUL113,R & M of Build - Reactive Repairs,16/06/2020,"-4,850.00 "
http://statistics.data.gov.uk/id/local-authority-district/23UB,Cheltenham Borough Council,Corporate Subscriptions,10033461,Bank Transactions,LGA UNLIMITED - DDL GAME MEMBERSHIP 2021,R4701-DRM008,Subscriptions,01/06/2020,"12,790.80 "
http://statistics.data.gov.uk/id/local-authority-district/23UB,Cheltenham Borough Council,Corporate Subscriptions,10033462,Bank Transactions,LGA UNLIMITED,R4701-DRM008,Subscriptions,23/06/2020,"-12,790.80 "
http://statistics.data.gov.uk/id/local-authority-district/23UB,Cheltenham Borough Council,Income and Expenditure on Investment Properties and Changes in Their Fair Value,10033483,Bank Transactions,WATER PLUS 0375009062 ELLENBOROUGH HOUSE - REFUND - SAVILLS TO PAY,R2401-FIE040,Water Services - Metered,23/06/2020,-844.72 
http://statistics.data.gov.uk/id/local-authority-district/23UB,Cheltenham Borough Council,Cheltenham Trust Intercompany Account,10033271,Bank Transactions,VODAFONE CORPORATION INV 94928614,R4507-HLD170,Comms - Mobile Telephones,08/06/2020,"1,398.07 "
http://statistics.data.gov.uk/id/local-authority-district/23UB,Cheltenham Borough Council,Community Infrastructure Levy (CIL) Collection Account,10033532,Bank Transactions,LEC WITH WARD PC - PLAN REF 19/0134,R4400-HLD180,Services - Professional Fees,02/06/2020,"2,908.20 "
http://statistics.data.gov.uk/id/local-authority-district/23UB,Cheltenham Borough Council,Supervision and Management,10033201,Bank Transactions,OPUS ENERGY CORPORATION - 0921070,R2100-HRA110,Electricity,08/06/2020,"10,373.22 "
http://statistics.data.gov.uk/id/local-authority-district/23UB,Cheltenham Borough Council,NNDR Collection,10033525,Bank Transactions,SHARPS BEDROOMS - RETURN OF GRANT,R6280-LTC011,Grants,12/06/2020,"-25,000.00 "
http://statistics.data.gov.uk/id/local-authority-district/23UB,Cheltenham Borough Council,Business Improvement District Administration,10033213,Bank Transactions,DCLG Grant for Buisness Improvemnet,R6280-LTC111,Grants,09/06/2020,"22,900.00 "
http://statistics.data.gov.uk/id/local-authority-district/23UB,Cheltenham Borough Council,Sports & Open Spaces Operations,10033502,Bank Transactions,"WATER PLUS 0375009062 - SWINDON VILLAGE SPORTS GROUND, WYMANS LANE,  CHELTENHAM - WATER CHARGE - 07/03/20-01/04/20",R2401-OPS002,Water Services - Metered,23/06/2020,983.16 
http://statistics.data.gov.uk/id/local-authority-district/23UB,Cheltenham Borough Council,Recreation Centre Repairs & Maintenance,10033277,Bank Transactions,WATER PLUS - 0467002027 - TOMMY TAYLORS LANE GL50 4NR - WATER SUPPLY - 01/03/2020 - 01/04/2020,R2401-REC111,Water Services - Metered,12/06/2020,"1,774.90 "
http://statistics.data.gov.uk/id/local-authority-district/23UB,Cheltenham Borough Council,Recreation Centre Repairs & Maintenance,10033277,Bank Transactions,WATER PLUS - 0467002027 - TOMMY TAYLORS LANE GL50 4NR - WATER SUPPLY - 04/02/2020 - 01/03/2020,R2401-REC111,Water Services - Metered,12/06/2020,"1,168.16 "
http://statistics.data.gov.uk/id/local-authority-district/23UB,Cheltenham Borough Council,Telephones,10033271,Bank Transactions,VODAFONE CORPORATION INV 94928614,R4507-SUP006,Comms - Mobile Telephones,08/06/2020,"2,232.02 "
Procurement Cards,,,,,,,,,
http://statistics.data.gov.uk/id/local-authority-district/23UB,Cheltenham Borough Council,Corona Virus,10033468,Procurement Cards,BUSINESS CHARGE CARD - REDACTED - TESCO,R4980-COV019,Miscellaneous Expenses,04/06/2020,611.46 
